fUSD/lending_fUSD_20250105
["ID","MTS","AMOUNT","RATE_DAILY","PERIOD"]
[347780043,1736103051511,-822.61,0.00010821,2]
[347780044,1736103051522,-500.0,0.00010821,2]
[347780045,1736103051533,-500.0,0.00010821,2]
[347780046,1736103051544,-516.78,0.00010821,2]
[347780047,1736103051556,-500.0,0.00010821,2]
[347780048,1736103051567,-910.99,0.00010821,2]
[347780049,1736103051581,-1128.36,0.00010821,2]
[347780050,1736103051591,-807.45,0.00010821,2]
[347780051,1736103051603,-1090.33,0.00010821,2]
[347780052,1736103051616,-500.0,0.00010821,2]
[347780053,1736103051628,-780.48,0.00010821,2]
[347780054,1736103051639,-1664.66,0.00010821,2]
[347780055,1736103051921,-2152.09,0.00010821,2]
[347780056,1736103051968,-545.21,0.00010821,2]
[347780057,1736103051989,-617.54,0.00010821,2]
[347780058,1736103052000,-1115.15,0.00010821,2]
[347780059,1736103052009,-500.0,0.00010821,2]
[347780060,1736103052019,-631.73,0.00010821,2]
[347780061,1736103052028,-2004.35,0.00010821,2]
[347780062,1736103052038,-500.0,0.00010821,2]
[347780063,1736103052047,-906.64,0.00010821,2]
[347780064,1736103052057,-680.52,0.00010821,2]
[347780065,1736103052066,-1427.5,0.00010821,2]
[347780066,1736103052077,-782.8,0.00010821,2]
[347780067,1736103052086,-1891.76,0.00010821,2]
[347780068,1736103052096,-500.0,0.00010821,2]
[347780069,1736103052105,-22556.49810843,0.000109,2]
[347780070,1736103052115,-22556.4981084,0.000109,2]
[347780071,1736103052125,-22556.4981084,0.000109,2]
[347780072,1736103052135,-22556.4981084,0.000109,2]
[347780073,1736103052145,-20935.17038969,0.00010921,2]
[347780074,1736103052155,-22556.4981084,0.00010922,2]
[347780075,1736103052164,-165.01,0.00010946,2]
[347780076,1736103052174,-7500.0,0.00010958,2]
[347780077,1736103052184,-7500.0,0.00010958,2]
[347780078,1736103052198,-7500.0,0.00010958,2]
[347780079,1736103052208,-7500.0,0.00010958,2]
[347780080,1736103052218,-7500.0,0.00010958,2]
[347780081,1736103052228,-598.37718842,0.00010958,2]
[347780082,1736103052239,-500.0,0.00010959,2]
[347780083,1736103052248,-2000.0,0.00010959,2]
[347780084,1736103052258,-500.0,0.00010959,2]
[347780085,1736103052267,-200.0,0.00010959,2]
[347780086,1736103052277,-218.408779,0.00010959,2]
[347780087,1736103052288,-218.408779,0.00010959,2]
[347780088,1736103052298,-218.408779,0.00010959,2]
[347780089,1736103052307,-218.408779,0.00010959,2]
[347780090,1736103052317,-150.0,0.00010959,2]
[347780091,1736103052326,-400.0,0.00010986,2]
[347780092,1736103052335,-177.0,0.00011,2]
[347780093,1736103052345,-567.0,0.00011,2]
[347780094,1736103052354,-550.0,0.00011,2]
[347780095,1736103052364,-517393.45469412,0.0001101,2]
[347780096,1736103052374,-4452.97886716,0.0001105,2]
[347780097,1736103052383,-2763.06562045,0.0001105,2]
[347780098,1736103052393,-7532.60762884,0.0001105,2]
[347780099,1736103052403,-1029.96,0.00011051,2]
[347780100,1736103052412,-218.408779,0.00011052,2]
[347780101,1736103052422,-218.408779,0.00011052,2]
[347780102,1736103052432,-1239.98,0.00011052,2]
[347780103,1736103052443,-500.0,0.00011052,2]
[347780104,1736103052453,-509.56,0.00011052,2]
[347780105,1736103052463,-741.25,0.00011052,2]
[347780106,1736103052473,-618.04,0.00011052,2]
[347780107,1736103052484,-615.62,0.00011052,2]
[347780108,1736103052493,-1000.0,0.00011052,2]
[347780109,1736103052503,-500.0,0.00011052,2]
[347780110,1736103052514,-500.0,0.00011052,2]
[347780111,1736103052523,-20935.17038969,0.00011062,2]
[347780112,1736103052532,-1000.0,0.00011079,2]
[347780113,1736103052542,-500.0,0.00011093,2]
[347780114,1736103052551,-500.0,0.00011093,2]
[347780115,1736103052560,-666.0,0.00011093,2]
[347780116,1736103052571,-500.0,0.00011094,2]
[347780117,1736103052580,-500.0,0.00011094,2]
[347780118,1736103052590,-612.92,0.00011094,2]
[347780119,1736103052599,-500.0,0.00011094,2]
[347780120,1736103052610,-500.0,0.00011094,2]
[347780121,1736103052619,-500.0,0.00011094,2]
[347780122,1736103052628,-228.42390276,0.00011094,2]
[347780123,1736103052638,-500.0,0.00011094,2]
[347780124,1736103052648,-592.62,0.00011094,2]
[347780125,1736103052657,-500.0,0.00011094,2]
[347780126,1736103052667,-500.0,0.00011094,2]
[347780127,1736103052676,-500.0,0.00011094,2]
[347780128,1736103052686,-500.0,0.00011094,2]
[347780129,1736103052696,-500.0,0.00011094,2]
[347780130,1736103052705,-500.0,0.00011094,2]
[347780131,1736103052715,-527.57,0.00011094,2]
[347780132,1736103052725,-500.0,0.00011094,2]
[347780133,1736103052736,-500.0,0.00011094,2]
[347780134,1736103052746,-500.0,0.00011094,2]
[347780135,1736103052755,-500.0,0.00011094,2]
[347780136,1736103052764,-500.0,0.00011094,2]
[347780137,1736103052774,-500.0,0.00011094,2]
[347780138,1736103052785,-500.0,0.00011094,2]
[347780139,1736103052795,-500.0,0.00011094,2]
[347780140,1736103052804,-458.69140421,0.00011094,2]
[347780141,1736103052814,-500.0,0.00011094,2]
[347780142,1736103052825,-500.0,0.00011094,2]
[347780143,1736103052834,-500.0,0.00011094,2]
[347780144,1736103052843,-574.69,0.00011094,2]
[347780145,1736103052854,-500.0,0.00011094,2]
[347780146,1736103052864,-500.0,0.00011094,2]
[347780147,1736103052874,-500.0,0.00011094,2]
[347780148,1736103052884,-229.18331862,0.00011094,2]
[347780149,1736103052894,-500.0,0.00011094,2]
[347780150,1736103052904,-613.41232545,0.00011094,2]
[347780151,1736103052914,-500.0,0.00011094,2]
[347780152,1736103052923,-500.0,0.00011094,2]
[347780153,1736103052933,-500.0,0.00011094,2]
[347780154,1736103052944,-500.0,0.00011094,2]
[347780155,1736103052955,-607.48713749,0.00011094,2]
[347780156,1736103052964,-500.0,0.00011094,2]
[347780157,1736103052973,-500.0,0.00011094,2]
[347780158,1736103052983,-500.0,0.00011094,2]
[347780159,1736103052993,-531.46,0.00011094,2]
[347780160,1736103053002,-500.0,0.00011094,2]
[347780161,1736103053012,-500.0,0.00011094,2]
[347780162,1736103053022,-500.0,0.00011094,2]
[347780163,1736103053031,-500.0,0.00011094,2]
[347780164,1736103053040,-500.0,0.00011094,2]
[347780165,1736103053050,-500.0,0.00011094,2]
[347780166,1736103053059,-500.0,0.00011094,2]
[347780167,1736103053068,-500.0,0.00011094,2]
[347780168,1736103053077,-500.0,0.00011094,2]
[347780169,1736103053087,-500.0,0.00011094,2]
[347780170,1736103053098,-500.0,0.00011094,2]
[347780171,1736103053108,-500.0,0.00011094,2]
[347780172,1736103053117,-500.0,0.00011094,2]
[347780173,1736103053126,-500.0,0.00011094,2]
[347780174,1736103053136,-500.0,0.00011094,2]
[347780175,1736103053145,-536.12,0.00011094,2]
[347780176,1736103053155,-500.0,0.00011094,2]
[347780177,1736103053164,-500.0,0.00011094,2]
[347780178,1736103053174,-500.0,0.00011094,2]
[347780179,1736103053183,-500.0,0.00011094,2]
[347780180,1736103053197,-500.0,0.00011094,2]
[347780181,1736103053206,-500.0,0.00011094,2]
[347780182,1736103053216,-506.23,0.00011094,2]
[347780183,1736103053226,-500.0,0.00011094,2]
[347780184,1736103053235,-500.0,0.00011094,2]
[347780185,1736103053245,-500.0,0.00011094,2]
[347780186,1736103053255,-500.0,0.00011094,2]
[347780187,1736103053264,-500.0,0.00011094,2]
[347780188,1736103053273,-500.0,0.00011094,2]
[347780189,1736103053283,-500.0,0.00011094,2]
[347780190,1736103053292,-500.0,0.00011094,2]
[347780191,1736103053301,-500.0,0.00011094,2]
[347780192,1736103053311,-500.0,0.00011094,2]
[347780193,1736103053320,-500.0,0.00011094,2]
[347780194,1736103053330,-500.0,0.00011094,2]
[347780195,1736103053339,-247.53847709,0.00011094,2]
[347780196,1736103053349,-500.0,0.00011094,2]
[347780197,1736103053358,-500.0,0.00011094,2]
[347780198,1736103053368,-500.0,0.00011094,2]
[347780199,1736103053378,-500.0,0.00011094,2]
[347780200,1736103053389,-500.0,0.00011094,2]
[347780201,1736103053399,-500.0,0.00011094,2]
[347780202,1736103053408,-500.0,0.00011094,2]
[347780203,1736103053418,-576.97,0.00011094,2]
[347780204,1736103053427,-500.0,0.00011094,2]
[347780205,1736103053437,-500.0,0.00011094,2]
[347780206,1736103053446,-806.04,0.00011094,2]
[347780207,1736103053457,-500.0,0.00011094,2]
[347780208,1736103053467,-500.0,0.00011094,2]
[347780209,1736103053476,-500.0,0.00011094,2]
[347780210,1736103053486,-1511.62,0.00011094,2]
[347780211,1736103053496,-500.0,0.00011094,2]
[347780212,1736103053505,-500.0,0.00011094,2]
[347780213,1736103053515,-500.0,0.00011094,2]
[347780214,1736103053525,-500.0,0.00011094,2]
[347780215,1736103053535,-625.8,0.00011094,2]
[347780216,1736103053544,-500.0,0.00011094,2]
[347780217,1736103053554,-500.0,0.00011094,2]
[347780218,1736103053563,-500.0,0.00011094,2]
[347780219,1736103053573,-500.0,0.00011094,2]
[347780220,1736103053583,-500.0,0.00011094,2]
[347780221,1736103053592,-500.0,0.00011094,2]
[347780222,1736103053602,-621.59,0.00011094,2]
[347780223,1736103053612,-958.77,0.00011094,2]
[347780224,1736103053622,-878.65,0.00011094,2]
[347780225,1736103053632,-500.0,0.00011094,2]
[347780226,1736103053641,-1241.97,0.00011094,2]
[347780227,1736103053650,-500.0,0.00011094,2]
[347780228,1736103053660,-752.45,0.00011094,2]
[347780229,1736103053670,-500.0,0.00011094,2]
[347780230,1736103053679,-500.0,0.00011094,2]
[347780231,1736103053690,-1313.29,0.00011094,2]
[347780232,1736103053700,-421.98,0.00011094,2]
[347780233,1736103053711,-500.0,0.00011094,2]
[347780234,1736103053721,-680.95,0.00011094,2]
[347780235,1736103053730,-500.0,0.00011094,2]
[347780236,1736103053740,-500.0,0.00011094,2]
[347780237,1736103053749,-500.0,0.00011094,2]
[347780238,1736103053758,-1684.17,0.00011094,2]
[347780239,1736103053767,-500.0,0.00011094,2]
[347780240,1736103053777,-500.0,0.00011094,2]
[347780241,1736103053786,-848.15,0.00011094,2]
[347780242,1736103053796,-500.0,0.00011094,2]
[347780243,1736103053805,-500.0,0.00011094,2]
[347780244,1736103053815,-500.0,0.00011094,2]
[347780245,1736103053824,-500.0,0.00011094,2]
[347780246,1736103053833,-500.0,0.00011094,2]
[347780247,1736103053843,-500.0,0.00011094,2]
[347780248,1736103053853,-1136.02,0.00011094,2]
[347780249,1736103053865,-500.0,0.00011094,2]
[347780250,1736103053875,-500.0,0.00011094,2]
[347780251,1736103053885,-1677.47,0.00011094,2]
[347780252,1736103053894,-500.0,0.00011094,2]
[347780253,1736103053904,-897.34,0.00011094,2]
[347780254,1736103053914,-1437.26,0.00011094,2]
[347780255,1736103053923,-735.56,0.00011094,2]
[347780256,1736103053932,-1062.37,0.00011094,2]
[347780257,1736103053945,-500.0,0.00011094,2]
[347780258,1736103053955,-535.81,0.00011094,2]
[347780259,1736103053964,-500.0,0.00011094,2]
[347780260,1736103053974,-500.0,0.00011094,2]
[347780261,1736103053984,-500.0,0.00011094,2]
[347780262,1736103053993,-500.0,0.00011094,2]
[347780263,1736103054003,-500.0,0.00011094,2]
[347780264,1736103054012,-2163.21,0.00011094,2]
[347780265,1736103054021,-2584.43,0.00011094,2]
[347780266,1736103054031,-500.0,0.00011094,2]
[347780267,1736103054040,-872.95,0.00011094,2]
[347780268,1736103054049,-1665.48,0.00011094,2]
[347780269,1736103054057,-500.0,0.00011094,2]
[347780270,1736103054066,-500.0,0.00011094,2]
[347780271,1736103054075,-500.0,0.00011094,2]
[347780272,1736103054084,-500.0,0.00011094,2]
[347780273,1736103054094,-500.0,0.00011094,2]
[347780274,1736103054104,-500.0,0.00011095,2]
[347780275,1736103054113,-500.0,0.00011095,2]
[347780276,1736103054122,-500.0,0.00011095,2]
[347780277,1736103054132,-818.76,0.00011095,2]
[347780278,1736103054141,-1037.03,0.00011095,2]
[347780279,1736103054151,-500.0,0.00011095,2]
[347780280,1736103054160,-1321.86,0.00011095,2]
[347780281,1736103054170,-1501.02,0.00011095,2]
[347780282,1736103054179,-500.0,0.00011095,2]
[347780283,1736103054192,-500.0,0.00011095,2]
[347780284,1736103054201,-500.0,0.00011095,2]
[347780285,1736103054211,-583.35,0.00011095,2]
[347780286,1736103054220,-795.210006,0.00011095,2]
[347780287,1736103054231,-500.0,0.00011095,2]
[347780288,1736103054241,-1284.85,0.00011095,2]
[347780289,1736103054250,-1730.75,0.00011095,2]
[347780290,1736103054260,-642.913233,0.00011095,2]
[347780291,1736103054270,-514.04,0.00011095,2]
[347780292,1736103054279,-687.23,0.00011095,2]
[347780293,1736103054290,-1931.78,0.00011095,2]
[347780294,1736103054299,-500.0,0.00011095,2]
[347780295,1736103054309,-514.31,0.00011095,2]
[347780296,1736103054320,-500.0,0.00011095,2]
[347780297,1736103054331,-500.0,0.00011095,2]
[347780298,1736103054340,-500.0,0.00011095,2]
[347780299,1736103054350,-500.0,0.00011095,2]
[347780300,1736103054360,-1810.87,0.00011095,2]
[347780301,1736103054370,-697.54,0.00011095,2]
[347780302,1736103054380,-790.77,0.00011095,2]
[347780303,1736103054389,-500.0,0.00011095,2]
[347780304,1736103054400,-500.0,0.00011095,2]
[347780305,1736103054411,-500.0,0.00011095,2]
[347780306,1736103054422,-822.61,0.00011095,2]
[347780307,1736103054431,-516.78,0.00011095,2]
[347780308,1736103054441,-500.0,0.00011095,2]
[347780309,1736103054451,-910.99,0.00011095,2]
[347780310,1736103054461,-1128.36,0.00011095,2]
[347780311,1736103054472,-807.45,0.00011095,2]
[347780312,1736103054483,-1090.33,0.00011095,2]
[347780313,1736103054493,-1664.66,0.00011095,2]
[347780314,1736103054503,-2152.09,0.00011095,2]
[347780315,1736103054513,-545.21,0.00011095,2]
[347780316,1736103054523,-617.54,0.00011095,2]
[347780317,1736103054533,-1115.15,0.00011095,2]
[347780318,1736103054543,-500.0,0.00011095,2]
[347780319,1736103054553,-631.73,0.00011095,2]
[347780320,1736103054564,-2004.35,0.00011095,2]
[347780321,1736103054574,-500.0,0.00011095,2]
[347780322,1736103054583,-906.64,0.00011095,2]
[347780323,1736103054593,-680.52,0.00011095,2]
[347780324,1736103054602,-1427.5,0.00011095,2]
[347780325,1736103054612,-782.8,0.00011095,2]
[347780326,1736103054622,-1891.76,0.00011095,2]
[347780327,1736103054632,-500.0,0.00011095,2]
[347780328,1736103054641,-413.02782862,0.00011114,2]
[347780329,1736103054651,-288.42,0.00011131,2]
[347780330,1736103054661,-22556.4981084,0.00011178,2]
[347780331,1736103054671,-20935.17038969,0.00011203,2]
[347780332,1736103054680,-567.0,0.00011233,2]
[347780333,1736103054700,-413.02782862,0.00011233,2]
[347780334,1736103054739,-185.0,0.00011234,2]
[347780335,1736103054749,-307.12,0.00011234,2]
[347780336,1736103054759,-157.0,0.00011234,2]
[347780337,1736103054768,-245.0,0.00011234,2]
[347780338,1736103054778,-180.0,0.00011241,2]
[347780339,1736103054788,-180.0,0.00011241,2]
[347780340,1736103054797,-180.01,0.00011241,2]
[347780341,1736103054806,-512.15,0.000113,2]
[347780342,1736103054816,-1029.96,0.00011325,2]
[347780343,1736103054825,-1239.98,0.00011326,2]
[347780344,1736103054835,-509.56,0.00011326,2]
[347780345,1736103054845,-741.25,0.00011326,2]
[347780346,1736103054854,-618.04,0.00011326,2]
[347780347,1736103054864,-615.62,0.00011326,2]
[347780348,1736103054874,-500.0,0.00011326,2]
[347780349,1736103054884,-500.0,0.00011326,2]
[347780350,1736103054895,-771.32,0.00011342,2]
[347780351,1736103054905,-437.68,0.00011342,2]
[347780352,1736103054915,-437.68,0.00011342,2]
[347780353,1736103054924,-437.16,0.00011342,2]
[347780354,1736103054934,-20935.17038969,0.00011345,2]
[347780355,1736103054943,-500.0,0.00011367,2]
[347780356,1736103054954,-500.0,0.00011367,2]
[347780357,1736103054965,-500.0,0.00011368,2]
[347780358,1736103054974,-500.0,0.00011368,2]
[347780359,1736103054983,-612.92,0.00011368,2]
[347780360,1736103054993,-500.0,0.00011368,2]
[347780361,1736103055003,-500.0,0.00011368,2]
[347780362,1736103055011,-500.0,0.00011368,2]
[347780363,1736103055020,-592.62,0.00011368,2]
[347780364,1736103055029,-500.0,0.00011368,2]
[347780365,1736103055039,-500.0,0.00011368,2]
[347780366,1736103055048,-500.0,0.00011368,2]
[347780367,1736103055057,-500.0,0.00011368,2]
[347780368,1736103055067,-500.0,0.00011368,2]
[347780369,1736103055076,-500.0,0.00011368,2]
[347780370,1736103055085,-527.57,0.00011368,2]
[347780371,1736103055094,-500.0,0.00011368,2]
[347780372,1736103055103,-500.0,0.00011368,2]
[347780373,1736103055112,-500.0,0.00011368,2]
[347780374,1736103055120,-500.0,0.00011368,2]
[347780375,1736103055128,-500.0,0.00011368,2]
[347780376,1736103055138,-500.0,0.00011368,2]
[347780377,1736103055147,-500.0,0.00011368,2]
[347780378,1736103055157,-500.0,0.00011368,2]
[347780379,1736103055166,-500.0,0.00011368,2]
[347780380,1736103055176,-500.0,0.00011368,2]
[347780381,1736103055342,-574.69,0.00011368,2]
[347780382,1736103055360,-451.71,0.00011368,2]
[347780383,1736103055370,-500.0,0.00011368,2]
[347780384,1736103055379,-500.0,0.00011368,2]
[347780385,1736103055389,-556.03146041,0.00011368,2]
[347780386,1736103055398,-500.0,0.00011368,2]
[347780387,1736103055408,-500.0,0.00011368,2]
[347780388,1736103055418,-500.0,0.00011368,2]
[347780389,1736103055427,-500.0,0.00011368,2]
[347780390,1736103055437,-500.0,0.00011368,2]
[347780391,1736103055451,-500.0,0.00011368,2]
[347780392,1736103055462,-272.10134077,0.00011368,2]
[347780393,1736103055471,-531.46,0.00011368,2]
[347780394,1736103055481,-500.0,0.00011368,2]
[347780395,1736103055491,-500.0,0.00011368,2]
[347780396,1736103055501,-500.0,0.00011368,2]
[347780397,1736103055511,-500.0,0.00011368,2]
[347780398,1736103055521,-500.0,0.00011368,2]
[347780399,1736103055530,-500.0,0.00011368,2]
[347780400,1736103055540,-500.0,0.00011368,2]
[347780401,1736103055550,-500.0,0.00011368,2]
[347780402,1736103055559,-500.0,0.00011368,2]
[347780403,1736103055569,-500.0,0.00011368,2]
[347780404,1736103055579,-500.0,0.00011368,2]
[347780405,1736103055589,-500.0,0.00011368,2]
[347780406,1736103055598,-500.0,0.00011368,2]
[347780407,1736103055608,-500.0,0.00011368,2]
[347780408,1736103055618,-500.0,0.00011368,2]
[347780409,1736103055628,-536.12,0.00011368,2]
[347780410,1736103055638,-500.0,0.00011368,2]
[347780411,1736103055648,-500.0,0.00011368,2]
[347780412,1736103055658,-500.0,0.00011368,2]
[347780413,1736103055667,-500.0,0.00011368,2]
[347780414,1736103055677,-500.0,0.00011368,2]
[347780415,1736103055686,-500.0,0.00011368,2]
[347780416,1736103055699,-506.23,0.00011368,2]
[347780417,1736103055708,-500.0,0.00011368,2]
[347780418,1736103055718,-500.0,0.00011368,2]
[347780419,1736103055728,-500.0,0.00011368,2]
[347780420,1736103055738,-500.0,0.00011368,2]
[347780421,1736103055748,-500.0,0.00011368,2]
[347780422,1736103055757,-500.0,0.00011368,2]
[347780423,1736103055766,-500.0,0.00011368,2]
[347780424,1736103055776,-500.0,0.00011368,2]
[347780425,1736103055785,-500.0,0.00011368,2]
[347780426,1736103055795,-500.0,0.00011368,2]
[347780427,1736103055805,-500.0,0.00011368,2]
[347780428,1736103055814,-500.0,0.00011368,2]
[347780429,1736103055824,-500.0,0.00011368,2]
[347780430,1736103055835,-500.0,0.00011368,2]
[347780431,1736103055845,-500.0,0.00011368,2]
[347780432,1736103055855,-500.0,0.00011368,2]
[347780433,1736103055864,-500.0,0.00011368,2]
[347780434,1736103055874,-576.97,0.00011368,2]
[347780435,1736103055883,-500.0,0.00011368,2]
[347780436,1736103055892,-806.04,0.00011368,2]
[347780437,1736103055903,-500.0,0.00011368,2]
[347780438,1736103055912,-500.0,0.00011368,2]
[347780439,1736103055922,-500.0,0.00011368,2]
[347780440,1736103055931,-1511.62,0.00011368,2]
[347780441,1736103055942,-500.0,0.00011368,2]
[347780442,1736103055951,-500.0,0.00011368,2]
[347780443,1736103055961,-500.0,0.00011368,2]
[347780444,1736103055972,-625.8,0.00011368,2]
[347780445,1736103055982,-500.0,0.00011368,2]
[347780446,1736103055992,-500.0,0.00011368,2]
[347780447,1736103056001,-520.31,0.00011368,2]
[347780448,1736103056011,-500.0,0.00011368,2]
[347780449,1736103056020,-500.0,0.00011368,2]
[347780450,1736103056030,-621.59,0.00011368,2]
[347780451,1736103056039,-878.65,0.00011368,2]
[347780452,1736103056049,-958.77,0.00011368,2]
[347780453,1736103056059,-500.0,0.00011368,2]
[347780454,1736103056069,-1241.97,0.00011368,2]
[347780455,1736103056079,-500.0,0.00011368,2]
[347780456,1736103056088,-752.45,0.00011368,2]
[347780457,1736103056098,-500.0,0.00011368,2]
[347780458,1736103056108,-500.0,0.00011368,2]
[347780459,1736103056119,-1313.29,0.00011368,2]
[347780460,1736103056131,-500.0,0.00011368,2]
[347780461,1736103056140,-680.95,0.00011368,2]
[347780462,1736103056150,-500.0,0.00011368,2]
[347780463,1736103056161,-500.0,0.00011368,2]
[347780464,1736103056171,-500.0,0.00011368,2]
[347780465,1736103056181,-1684.17,0.00011368,2]
[347780466,1736103056192,-500.0,0.00011368,2]
[347780467,1736103056204,-500.0,0.00011368,2]
[347780468,1736103056214,-848.15,0.00011368,2]
[347780469,1736103056224,-500.0,0.00011368,2]
[347780470,1736103056236,-500.0,0.00011368,2]
[347780471,1736103056246,-500.0,0.00011368,2]
[347780472,1736103056257,-500.0,0.00011368,2]
[347780473,1736103056269,-500.0,0.00011368,2]
[347780474,1736103056281,-1136.02,0.00011368,2]
[347780475,1736103056293,-500.0,0.00011368,2]
[347780476,1736103056303,-1677.47,0.00011368,2]
[347780477,1736103056312,-500.0,0.00011368,2]
[347780478,1736103056322,-897.34,0.00011368,2]
[347780479,1736103056332,-1437.26,0.00011368,2]
[347780480,1736103056341,-735.56,0.00011368,2]
[347780481,1736103056350,-1062.37,0.00011368,2]
[347780482,1736103056360,-535.81,0.00011368,2]
[347780483,1736103056369,-500.0,0.00011368,2]
[347780484,1736103056379,-500.0,0.00011368,2]
[347780485,1736103056388,-500.0,0.00011368,2]
[347780486,1736103056398,-500.0,0.00011368,2]
[347780487,1736103056407,-500.0,0.00011368,2]
[347780488,1736103056417,-2163.21,0.00011368,2]
[347780489,1736103056426,-2584.43,0.00011368,2]
[347780490,1736103056435,-500.0,0.00011368,2]
[347780491,1736103056447,-872.95,0.00011368,2]
[347780492,1736103056457,-1665.48,0.00011368,2]
[347780493,1736103056466,-500.0,0.00011368,2]
[347780494,1736103056475,-500.0,0.00011368,2]
[347780495,1736103056485,-500.0,0.00011368,2]
[347780496,1736103056494,-500.0,0.00011368,2]
[347780497,1736103056503,-500.0,0.00011368,2]
[347780498,1736103056512,-500.0,0.00011369,2]
[347780499,1736103056522,-500.0,0.00011369,2]
[347780500,1736103056531,-818.76,0.00011369,2]
[347780501,1736103056541,-1037.03,0.00011369,2]
[347780502,1736103056550,-500.0,0.00011369,2]
[347780503,1736103056559,-1321.86,0.00011369,2]
[347780504,1736103056569,-1501.02,0.00011369,2]
[347780505,1736103056578,-500.0,0.00011369,2]
[347780506,1736103056590,-500.0,0.00011369,2]
[347780507,1736103056599,-500.0,0.00011369,2]
[347780508,1736103056609,-583.35,0.00011369,2]
[347780509,1736103056619,-795.210006,0.00011369,2]
[347780510,1736103056628,-500.0,0.00011369,2]
[347780511,1736103056637,-1284.85,0.00011369,2]
[347780512,1736103056646,-642.913233,0.00011369,2]
[347780513,1736103056657,-1730.75,0.00011369,2]
[347780514,1736103056667,-514.04,0.00011369,2]
[347780515,1736103056677,-687.23,0.00011369,2]
[347780516,1736103056687,-1931.78,0.00011369,2]
[347780517,1736103056698,-500.0,0.00011369,2]
[347780518,1736103056707,-514.31,0.00011369,2]
[347780519,1736103056716,-500.0,0.00011369,2]
[347780520,1736103056726,-500.0,0.00011369,2]
[347780521,1736103056735,-316.6,0.00011369,2]
[347780522,1736103056745,-1810.87,0.00011369,2]
[347780523,1736103056755,-697.54,0.00011369,2]
[347780524,1736103056766,-790.77,0.00011369,2]
[347780525,1736103056776,-500.0,0.00011369,2]
[347780526,1736103056785,-500.0,0.00011369,2]
[347780527,1736103056797,-500.0,0.00011369,2]
[347780528,1736103056808,-822.61,0.00011369,2]
[347780529,1736103056818,-516.78,0.00011369,2]
[347780530,1736103056827,-500.0,0.00011369,2]
[347780531,1736103056837,-910.99,0.00011369,2]
[347780532,1736103056846,-1128.36,0.00011369,2]
[347780533,1736103056856,-807.45,0.00011369,2]
[347780534,1736103056866,-1090.33,0.00011369,2]
[347780535,1736103056876,-1664.66,0.00011369,2]
[347780536,1736103056886,-2152.09,0.00011369,2]
[347780537,1736103056896,-545.21,0.00011369,2]
[347780538,1736103056906,-617.54,0.00011369,2]
[347780539,1736103056916,-1115.15,0.00011369,2]
[347780540,1736103056926,-500.0,0.00011369,2]
[347780541,1736103056935,-631.73,0.00011369,2]
[347780542,1736103056946,-2004.35,0.00011369,2]